[Event "Budimex POL-ch Women 2018"]
[Site "Warsaw"]
[Date "2018.05.18"]
[Round "7"]
[White "Sliwicka, Alicja"]
[Black "Kubicka, Anna"]
[Result "1-0"]
[ECO "B94"]
[WhiteElo "2261"]
[BlackElo "2219"]
[Annotator "NA"]
[PlyCount "95"]
[EventDate "2018.??.??"]
[EventType "tourn"]
[EventCountry "POL"]
[SourceTitle "playchess.com"]
[Source "ChessBase"]
[SourceQuality "1"]
[TimeControl "40/5400+30:1800+30"]

1. e4 {[%emt 0:00:00]} c5 {[%emt 0:00:12]} 2. Nf3 {[%emt 0:00:00]} d6 {[%emt 0:00:07]} 3. d4 {[%emt 0:00:00]} cxd4 {[%emt 0:00:05]} 4. Nxd4 {[%emt 0:00:00]} Nf6 {[%emt 0:00:09]} 5. Nc3 {[%emt 0:00:00]} a6 {[%emt 0:00:04]} 6. Bg5 {[%emt 0:00:00]} Nbd7 {[%emt 0:00:07]} 7. Qe2 {[%emt 0:00:07] B94: Sicilian Najdorf: 6 Bg5 Nbd7} (7. Bc4 h6 8. Bh4 g6 9. Qe2 e5 10. Nb3 Be7 11. a4 Nb6 12. Bd3 Be6 13. a5 Nbd7 14. Bc4 Rc8 15. Bxe6 fxe6 16. O-O {1-0 (79) Nepomniachtchi,I (2751)-Fedoseev,V (2724) Moscow 2018}) 7... Qc7 {[%emt 0:02:17]} 8. O-O-O {[%emt 0:00:18]} g6 {[%emt 0:01:20]} 9. f4 {[%emt 0:01:31]} e5 {[%emt 0:02:16]} 10. Nb3 $146 {[%emt 0:04:52]} ({Predecessor:} 10. fxe5 dxe5 11. Nf3 h6 12. Bh4 Bb4 13. Nd5 Nxd5 14. exd5 O-O {1-0 (29) Pallas,S (2039)-Gungl,T (2095) Magdeburg 2014}) 10... h6 {[%emt 0:05:19]} 11. Bh4 {[%emt 0:05:39]} Be7 {[%emt 0:12:55]} 12. f5 {[%emt 0:06:11]} gxf5 {[%emt 0:08:01]} 13. exf5 {[%emt 0:00:11]} b5 {[%emt 0:00:29]} 14. g4 {[%emt 0:11:28]} b4 {[%emt 0:07:23]} 15. Bxf6 {[%emt 0:08:42]} Nxf6 {[%emt 0:05:38]} 16. Bg2 {[%emt 0:00:34]} Rb8 {[%emt 0:12:09]} 17. Nd5 {[%emt 0:01:30]} Nxd5 {[%emt 0:01:30]} 18. Bxd5 {[%emt 0:00:14]} a5 {[%emt 0:01:52]} 19. Nd2 {[%emt 0:06:45]} Bg5 {[%emt 0:07:33]} 20. Kb1 {[%emt 0:00:26]} Bxd2 {[%emt 0:00:56]} 21. Qxd2 {[%emt 0:01:58]} a4 {[%emt 0:04:08]} 22. Rhf1 {[%emt 0:03:29]} Rb6 {[%emt 0:03:28]} 23. g5 {[%emt 0:07:10]} hxg5 {[%emt 0:01:27]} 24. Qxg5 {[%emt 0:00:09]} a3 {[%emt 0:05:45]} 25. Qg7 {[%emt 0:07:25]} Rf8 {[%emt 0:02:00]} 26. Rf3 {[%emt 0:09:11]} axb2 {[%emt 0:00:57]} 27. Bb3 {[%emt 0:00:27]} Qb7 {[%emt 0:03:43]} 28. Rdf1 {[%emt 0:03:04]} Qa6 {[%emt 0:04:32]} 29. R1f2 {[%emt 0:02:10]} Rb7 {[%emt 0:00:52]} 30. Qg1 {[%emt 0:04:30]} Rc7 {[%emt 0:01:52]} 31. Rg3 {[%emt 0:01:17]} Rc3 {[%emt 0:02:13]} 32. Kxb2 {[%emt 0:05:35]} Rxg3 {[%emt 0:00:29]} 33. Qxg3 {[%emt 0:00:11]} Qb6 {[%emt 0:00:55]} 34. Rf1 {[%emt 0:02:12]} Qd4+ {[%emt 0:01:33]} 35. Kb1 {[%emt 0:00:34]} Bd7 {[%emt 0:00:54] [#]} 36. Qf3 {[%emt 0:03:11]} (36. f6 $1 $18 Bg4 37. Qg2) 36... e4 {[%emt 0:02:16]} 37. Qe2 {[%emt 0:01:19]} f6 $2 {[%emt 0:00:41]} (37... Bc6 $14) 38. Rd1 {[%emt 0:01:31]} Qe5 {[%emt 0:00:17]} 39. Rd5 {[%emt 0:03:27]} Qf4 {[%emt 0:00:06]} 40. Ra5 {[%emt 0:00:00]} Ke7 {[%emt 0:01:26]} 41. Qh5 $16 {[%emt 0:03:09]} (41. Qg2 $18 {is the precise move to win.} d5 42. Bxd5) 41... Qf2 {[%emt 0:13:41]} 42. a3 {[%emt 0:11:55]} Be8 {[%emt 0:09:16]} 43. Qh7+ {[%emt 0:02:22]} Rf7 {[%emt 0:00:38]} 44. Qg8 {[%emt 0:01:36]} Rf8 {[%emt 0:04:55]} 45. Qe6+ {[%emt 0:00:14]} Kd8 {[%emt 0:00:21]} 46. Qxd6+ {[%emt 0:00:25]} Kc8 {[%emt 0:00:17]} 47. Ra8+ {[%emt 0:00:24]} Kb7 {[%emt 0:00:18]} 48. Bd5+ {[%emt 0:00:07]} 1-0

[Event "Budimex POL-ch Women 2018"]
[Site "Warsaw"]
[Date "2018.05.19"]
[Round "8"]
[White "Kulon, Klaudia"]
[Black "Sliwicka, Alicja"]
[Result "1-0"]
[ECO "A40"]
[WhiteElo "2353"]
[BlackElo "2261"]
[Annotator "NA"]
[PlyCount "79"]
[EventDate "2018.??.??"]
[EventType "tourn"]
[EventCountry "POL"]
[SourceTitle "playchess.com"]
[Source "ChessBase"]
[SourceQuality "1"]
[TimeControl "40/5400+30:1800+30"]

1. d4 {[%emt 0:00:00]} e6 {[%emt 0:00:06]} 2. Bf4 {[%emt 0:02:20]} d5 {[%emt 0:00:09]} 3. e3 {[%emt 0:00:19]} Nf6 {[%emt 0:00:08]} 4. Bd3 {[%emt 0:00:28]} c5 {[%emt 0:00:11]} 5. c3 {[%emt 0:00:05]} Nc6 {[%emt 0:00:07]} 6. Nd2 {[%emt 0:00:48]} Bd6 {[%emt 0:00:08]} 7. Bg3 {[%emt 0:00:46] D00: Damenbauernspiele} (7. Bxd6 Qxd6 8. f4 Bd7 9. a3 Ne7 10. Ngf3 Qb6 11. Rb1 Bb5 12. Bxb5+ Qxb5 13. Qe2 Qxe2+ 14. Kxe2 Rc8 {1-0 (58) Duda,J (2717)-Dziuba,M (2584) Katowice 2017}) 7... O-O {[%emt 0:00:16]} 8. f4 {[%emt 0:01:50]} Bd7 {[%emt 0:03:32]} 9. Ngf3 $146 {[%emt 0:01:14]} ({Vorgänger:} 9. Nh3 Rb8 10. a4 a6 11. Bh4 Be7 12. O-O b5 13. axb5 axb5 14. dxc5 {½-½ (83) Bellon Lopez,J (2311)-Madebrink,L (2172) Sweden 2017}) 9... Ne7 {[%emt 0:18:00]} 10. Ne5 {[%emt 0:02:43]} a6 {[%emt 0:10:28]} 11. Bh4 {[%emt 0:04:40]} Bb5 {[%emt 0:06:19]} 12. Bc2 {[%emt 0:08:52]} Ng6 {[%emt 0:00:57]} 13. Bg5 {[%emt 0:00:56]} Be7 {[%emt 0:08:31]} 14. h4 {[%emt 0:05:16]} Nd7 {[%emt 0:08:56]} 15. a4 {[%emt 0:04:14]} Bc6 {[%emt 0:03:09]} 16. Nxg6 {[%emt 0:07:15]} hxg6 {[%emt 0:02:23]} 17. Qg4 {[%emt 0:00:20]} Re8 {[%emt 0:14:45]} 18. h5 {[%emt 0:01:23]} Bxg5 {[%emt 0:01:17]} 19. fxg5 {[%emt 0:00:17]} Nf8 {[%emt 0:02:10]} 20. Qh4 {[%emt 0:00:47]} f5 {[%emt 0:01:17]} 21. Nf3 {[%emt 0:04:30]} Kf7 {[%emt 0:02:27]} 22. Ne5+ {[%emt 0:02:37]} Ke7 {[%emt 0:00:01]} 23. hxg6 {[%emt 0:00:06]} Nd7 {[%emt 0:00:38]} 24. Nf7 {[%emt 0:01:23]} Qc7 {[%emt 0:00:25]} 25. O-O-O {[%emt 0:01:09]} b5 {[%emt 0:02:39]} 26. Qh7 {[%emt 0:00:31]} bxa4 27. Qxg7 {[%emt 0:00:21]} a3 {[%emt 0:05:55]} 28. bxa3 {[%emt 0:00:30]} cxd4 {[%emt 0:00:44]} 29. Ne5+ {[%emt 0:00:52]} Kd8 {[%emt 0:00:59]} 30. exd4 {[%emt 0:00:27]} Nxe5 {[%emt 0:01:04]} 31. Qf6+ {[%emt 0:02:21]} Kc8 {[%emt 0:00:41]} 32. Qxe5 {[%emt 0:00:05]} Qxe5 {[%emt 0:00:31]} 33. dxe5 {[%emt 0:00:02]} Rg8 {[%emt 0:00:38]} 34. Rh6 {[%emt 0:01:39]} Be8 {[%emt 0:01:31]} 35. c4 {[%emt 0:01:13]} dxc4 {[%emt 0:02:17]} 36. Rd6 $18 {[%emt 0:00:41]} Ra7 {[%emt 0:02:22]} 37. Rxe6 {[%emt 0:00:45]} Rag7 {[%emt 0:00:44]} 38. Rf6 {[%emt 0:00:50]} f4 {[%emt 0:01:05]} 39. Bf5+ {[%emt 0:03:54]} Kb7 {[%emt 0:00:40]} 40. Be6 {[%emt 0:00:00]} 1-0

[Event "Budimex POL-ch Women 2018"]
[Site "Warsaw"]
[Date "2018.05.20"]
[Round "9"]
[White "Szczepkowska, Karina"]
[Black "Warakomska, Anna"]
[Result "0-1"]
[ECO "D47"]
[WhiteElo "2404"]
[BlackElo "2295"]
[Annotator "ChessBase"]
[PlyCount "94"]
[EventDate "2018.??.??"]
[EventType "tourn"]
[EventCountry "POL"]
[SourceTitle "playchess.com"]
[Source "ChessBase"]
[SourceQuality "1"]
[TimeControl "40/5400+30:1800+30"]

1. d4 {[%emt 0:00:00]} d5 {[%emt 0:00:17]} 2. c4 {[%emt 0:00:00]} c6 {[%emt 0:00:02]} 3. Nc3 {[%emt 0:00:00]} Nf6 {[%emt 0:00:15]} 4. e3 {[%emt 0:00:00]} e6 {[%emt 0:00:42]} 5. Nf3 {[%emt 0:00:04]} Nbd7 {[%emt 0:00:16]} 6. Bd3 {[%emt 0:00:07]} dxc4 {[%emt 0:00:48]} 7. Bxc4 {[%emt 0:00:06]} b5 {[%emt 0:00:36]} 8. Bd3 {[%emt 0:01:39]} Bd6 {[%emt 0:03:12]} 9. O-O {[%emt 0:01:53]} O-O {[%emt 0:01:30]} 10. Bd2 {[%emt 0:00:17]} b4 {[%emt 0:10:49]} 11. Ne2 {[%emt 0:08:56]} c5 {[%emt 0:03:22]} 12. Ng3 {[%emt 0:09:00]} Bb7 {[%emt 0:01:56]} 13. Re1 {[%emt 0:03:31]} Rc8 {[%emt 0:06:21]} 14. Rc1 {[%emt 0:00:57]} Qb6 {[%emt 0:02:32]} 15. Bb1 {[%emt 0:20:14]} Rfd8 {[%emt 0:11:43]} 16. Ng5 {[%emt 0:12:25]} cxd4 {[%emt 0:09:36]} 17. Rxc8 {[%emt 0:02:51]} Rxc8 {[%emt 0:00:18]} 18. e4 {[%emt 0:07:53]} Ne5 {[%emt 0:14:03]} 19. Nh5 {[%emt 0:11:57]} Nxh5 {[%emt 0:05:00]} 20. Qxh5 {[%emt 0:00:02]} h6 {[%emt 0:01:07]} 21. Nh3 {[%emt 0:01:53]} d3 {[%emt 0:05:09]} 22. b3 {[%emt 0:01:17]} Qd4 {[%emt 0:01:07]} 23. Nf4 {[%emt 0:08:23]} Bxe4 {[%emt 0:01:59]} 24. Qd1 {[%emt 0:00:11]} Bf5 {[%emt 0:02:55]} 25. Be3 {[%emt 0:00:56]} Qc3 {[%emt 0:01:07]} 26. Bd2 {[%emt 0:00:12]} Qb2 {[%emt 0:00:51]} 27. Be3 {[%emt 0:00:45]} d2 {[%emt 0:04:08]} 28. Bxd2 {[%emt 0:01:38]} Bxb1 {[%emt 0:00:20]} 29. Be3 {[%emt 0:00:01]} Bc5 {[%emt 0:02:14]} 30. Bxc5 {[%emt 0:04:00]} Rxc5 {[%emt 0:00:05]} 31. Qxb1 {[%emt 0:00:05]} Qxb1 {[%emt 0:00:06]} 32. Rxb1 {[%emt 0:00:01]} Rc2 {[%emt 0:00:11]} 33. Ra1 {[%emt 0:01:08]} g5 {[%emt 0:00:30]} 34. Nh5 {[%emt 0:00:15]} Nd3 {[%emt 0:00:29]} 35. h3 {[%emt 0:01:13]} Rc1+ {[%emt 0:00:44]} 36. Rxc1 {[%emt 0:00:05]} Nxc1 {[%emt 0:00:03]} 37. Nf6+ {[%emt 0:00:09]} Kg7 {[%emt 0:00:16]} 38. Ne8+ {[%emt 0:00:47]} Kf8 {[%emt 0:00:35]} 39. Nd6 {[%emt 0:04:05]} Nxa2 {[%emt 0:00:14]} 40. Nb5 {[%emt 0:00:00]} a5 {[%emt 0:01:25]} 41. Nd4 {[%emt 0:00:15]} Nc1 {[%emt 0:00:24]} 42. Kf1 {[%emt 0:02:03]} e5 {[%emt 0:01:18]} 43. Nc6 {[%emt 0:00:03]} Nxb3 {[%emt 0:00:07]} 44. Nxe5 {[%emt 0:00:02]} Nd4 {[%emt 0:02:11]} 45. Ke1 {[%emt 0:00:20]} a4 {[%emt 0:01:13]} 46. Nd3 {[%emt 0:00:37]} b3 {[%emt 0:01:13]} 47. Kd2 {[%emt 0:00:01]} a3 {[%emt 0:00:38]} 0-1

[Event "Budimex POL-ch Women 2018"]
[Site "Warsaw"]
[Date "2018.05.20"]
[Round "9"]
[White "Rajlich, Iweta"]
[Black "Kulon, Klaudia"]
[Result "0-1"]
[ECO "A01"]
[WhiteElo "2389"]
[BlackElo "2353"]
[Annotator "NA"]
[PlyCount "74"]
[EventDate "2018.??.??"]
[EventType "tourn"]
[EventCountry "POL"]
[SourceTitle "playchess.com"]
[Source "ChessBase"]
[SourceQuality "1"]
[TimeControl "40/5400+30:1800+30"]

1. b3 {[%emt 0:00:00]} Nf6 {[%emt 0:00:06]} 2. Bb2 {[%emt 0:00:00]} g6 {[%emt 0:00:04]} 3. Bxf6 {[%emt 0:00:00]} exf6 {[%emt 0:00:04]} 4. c4 {[%emt 0:00:00]} d5 {[%emt 0:00:04] A01: Nimzowitsch-Larsen Opening} (4... f5 5. Nc3 d6 6. g3 Nd7 7. Bg2 Nf6 8. e3 h5 9. h4 Bh6 10. Nge2 O-O 11. O-O Re8 12. Nf4 c6 13. Nce2 a5 14. Qc2 Bd7 15. a3 Ng4 16. Rab1 Bg7 17. b4 axb4 18. axb4 Ra3 19. d4 {½-½ (19) Iturrizaga Bonelli,E (2662)-Ponomariov,R (2692) Linares 2017}) 5. cxd5 {[%emt 0:00:13]} Qxd5 {[%emt 0:00:02]} 6. Nc3 {[%emt 0:00:09]} Qa5 {[%emt 0:00:06]} 7. g3 {[%emt 0:00:59]} c6 {[%emt 0:00:28]} 8. Bg2 {[%emt 0:00:28]} Bg7 {[%emt 0:05:19]} 9. Nf3 {[%emt 0:03:32]} f5 {[%emt 0:01:28]} 10. O-O $146 {[%emt 0:00:50]} ({Predecessor:} 10. Qc1 O-O 11. O-O Nd7 12. a3 {1-0 (35) Segal,A (2324)-Lima,D (2094) Serra Negra 2002}) 10... O-O {[%emt 0:00:11]} 11. Qc2 {[%emt 0:02:32]} Re8 {[%emt 0:03:58]} 12. Rac1 {[%emt 0:10:51]} Na6 {[%emt 0:03:36]} 13. d4 {[%emt 0:03:08]} c5 {[%emt 0:14:21]} 14. e3 {[%emt 0:08:59]} f4 {[%emt 0:06:24]} 15. gxf4 {[%emt 0:15:38]} Bf5 {[%emt 0:00:05]} 16. Qd2 {[%emt 0:02:49]} Rad8 {[%emt 0:00:06]} 17. Rfe1 {[%emt 0:05:37]} (17. d5 $14) 17... cxd4 {[%emt 0:05:15]} 18. exd4 {[%emt 0:00:53]} Rxe1+ {[%emt 0:00:38]} 19. Qxe1 {[%emt 0:04:07]} Nc7 {[%emt 0:04:12]} 20. Qe3 {[%emt 0:14:01]} Ne6 {[%emt 0:11:59]} 21. d5 {[%emt 0:01:39]} Nxf4 {[%emt 0:02:20]} 22. Qxf4 {[%emt 0:00:28]} Bxc3 {[%emt 0:00:04]} 23. Qc4 {[%emt 0:07:30]} Bb2 {[%emt 0:00:36]} 24. Rd1 {[%emt 0:00:25]} Qxa2 {[%emt 0:02:31]} 25. Qh4 {[%emt 0:03:21]} Rd7 {[%emt 0:02:01]} 26. Ng5 {[%emt 0:01:57]} h5 {[%emt 0:00:47]} 27. Qg3 {[%emt 0:02:08]} Kg7 {[%emt 0:03:46]} 28. Bh3 {[%emt 0:01:22]} Bxh3 {[%emt 0:10:37]} 29. Qxh3 {[%emt 0:00:01]} Rd8 {[%emt 0:01:34]} 30. Nxf7 {[%emt 0:02:40]} Kxf7 {[%emt 0:03:05]} 31. Qe6+ {[%emt 0:00:01]} Kf8 {[%emt 0:00:05]} 32. d6 {[%emt 0:01:42]} Re8 {[%emt 0:02:01]} 33. Qd5 {[%emt 0:00:48]} Bf6 {[%emt 0:02:25]} 34. d7 {[%emt 0:03:04]} Rd8 {[%emt 0:00:01]} 35. Re1 {[%emt 0:02:13]} Qa3 {[%emt 0:00:51]} 36. Kg2 $19 {[%emt 0:01:52]} Qb4 {[%emt 0:01:06]} 37. h3 {[%emt 0:01:23]} Qxe1 0-1